[Event "Titled Tuesday Blitz July 13 2021"]
[White "Florescu, Codrut-Constantin"]
[Black "Nguyen, Hong Ngoc"]
[WhiteFideId "1202200"]
[BlackFideId "12403083"]
[WhiteElo "2243"]
[BlackElo "1830"]
[Result "0-1"]
[Round "04"]
[TimeControl "180+1"]
[Date "2021.07.13"]
[WhiteClock "0:00:15"]
[BlackClock "0:00:41"]

1. d4 {[%clk 0:03:00]}  Nf6 {[%clk 0:02:59]} 2. c4 {[%clk 0:03:00]}  e6 {[%clk 0:02:58]} 3. Nf3 {[%clk 0:02:59]}  b6 {[%clk 0:02:57]} 4. g3 {[%clk 0:02:59]}  Bb7 {[%clk 0:02:57]} 5. Bg2 {[%clk 0:02:59]}  Be7 {[%clk 0:02:58]} 6. O-O {[%clk 0:02:59]}  O-O {[%clk 0:02:58]} 7. Re1 {[%clk 0:02:59]}  Ne4 {[%clk 0:02:58]} 8. Nfd2 {[%clk 0:02:56]}  f5 {[%clk 0:02:56]} 9. Qc2 {[%clk 0:02:56]}  Nc6 {[%clk 0:02:28]} 10. e3 {[%clk 0:02:49]}  Nxd2 {[%clk 0:02:25]} 11. Bxd2 {[%clk 0:02:46]}  d6 {[%clk 0:02:23]} 12. a3 {[%clk 0:02:30]}  Qc8 {[%clk 0:02:22]} 13. b4 {[%clk 0:02:27]}  Nd8 {[%clk 0:02:22]} 14. e4 {[%clk 0:02:23]}  e5 {[%clk 0:02:15]} 15. dxe5 {[%clk 0:02:19]}  dxe5 {[%clk 0:02:16]} 16. exf5 {[%clk 0:02:17]}  Bxg2 {[%clk 0:02:15]} 17. Kxg2 {[%clk 0:02:17]}  Rxf5 {[%clk 0:02:09]} 18. Nc3 {[%clk 0:02:15]}  Qe6 {[%clk 0:02:01]} 19. Nd5 {[%clk 0:02:13]}  Bd6 {[%clk 0:01:58]} 20. Bc3 {[%clk 0:02:07]}  Nc6 {[%clk 0:01:48]} 21. Rad1 {[%clk 0:01:59]}  Raf8 {[%clk 0:01:44]} 22. f4 {[%clk 0:01:58]}  Qg6 {[%clk 0:01:39]} 23. b5 {[%clk 0:01:42]}  exf4 {[%clk 0:01:30]} 24. bxc6 {[%clk 0:01:34]}  fxg3 {[%clk 0:01:30]} 25. Ne7+ {[%clk 0:00:40]}  Bxe7 {[%clk 0:01:28]} 26. hxg3 {[%clk 0:00:32]}  Bd6 {[%clk 0:01:24]} 27. Qd3 {[%clk 0:00:28]}  Bxg3 {[%clk 0:00:57]} 28. Re7 {[%clk 0:00:15]}  Bd6+ {[%clk 0:00:41]} 0-1


[Site "https://www.chess.com"]

[Event "Titled Tuesday Blitz July 13 2021"]
[White "Gabdushev, Ruslan"]
[Black "Rostovtsev, Dmitry"]
[WhiteFideId "4137833"]
[BlackFideId "34278320"]
[WhiteElo "2312"]
[BlackElo "2114"]
[Result "1-0"]
[Round "04"]
[TimeControl "180+1"]
[Date "2021.07.13"]
[WhiteClock "0:00:10"]
[BlackClock "0:00:05"]

1. c4 {[%clk 0:03:00]}  Nf6 {[%clk 0:02:59]} 2. Nc3 {[%clk 0:02:58]}  g6 {[%clk 0:03:00]} 3. e4 {[%clk 0:02:58]}  d6 {[%clk 0:03:01]} 4. g3 {[%clk 0:02:57]}  Bg7 {[%clk 0:03:00]} 5. Bg2 {[%clk 0:02:58]}  O-O {[%clk 0:03:00]} 6. Nge2 {[%clk 0:02:57]}  Nc6 {[%clk 0:03:00]} 7. O-O {[%clk 0:02:56]}  e5 {[%clk 0:03:01]} 8. h3 {[%clk 0:02:55]}  a6 {[%clk 0:02:59]} 9. d3 {[%clk 0:02:53]}  b5 {[%clk 0:02:59]} 10. b3 {[%clk 0:02:51]}  b4 {[%clk 0:02:42]} 11. Nd5 {[%clk 0:02:43]}  Nxd5 {[%clk 0:02:42]} 12. cxd5 {[%clk 0:02:34]}  Ne7 {[%clk 0:02:42]} 13. Bd2 {[%clk 0:02:24]}  Rb8 {[%clk 0:02:39]} 14. Qc1 {[%clk 0:02:17]}  a5 {[%clk 0:02:14]} 15. a3 {[%clk 0:02:16]}  Ba6 {[%clk 0:02:12]} 16. Qc2 {[%clk 0:02:06]}  Bb5 {[%clk 0:01:56]} 17. axb4 {[%clk 0:02:02]}  axb4 {[%clk 0:01:57]} 18. Ra7 {[%clk 0:02:00]}  c5 {[%clk 0:01:48]} 19. Rfa1 {[%clk 0:01:45]}  Nc8 {[%clk 0:01:32]} 20. R7a5 {[%clk 0:01:41]}  f5 {[%clk 0:01:28]} 21. exf5 {[%clk 0:01:24]}  gxf5 {[%clk 0:01:17]} 22. Ra8 {[%clk 0:01:14]}  Rxa8 {[%clk 0:01:12]} 23. Rxa8 {[%clk 0:01:14]}  e4 {[%clk 0:01:13]} 24. Nf4 {[%clk 0:01:11]}  exd3 {[%clk 0:01:09]} 25. Qd1 {[%clk 0:00:58]}  Qe7 {[%clk 0:00:56]} 26. Ne6 {[%clk 0:00:53]}  Re8 {[%clk 0:00:57]} 27. Qh5 {[%clk 0:00:47]}  Qf7 {[%clk 0:00:33]} 28. Qg5 {[%clk 0:00:35]}  Nb6 {[%clk 0:00:17]} 29. Ra5 {[%clk 0:00:27]}  Bd7 {[%clk 0:00:15]} 30. Ra6 {[%clk 0:00:20]}  Nxd5 {[%clk 0:00:14]} 31. Nxg7 {[%clk 0:00:18]}  Nc3 {[%clk 0:00:07]} 32. Nxe8+ {[%clk 0:00:13]}  Kf8 {[%clk 0:00:08]} 33. Nxd6 {[%clk 0:00:13]}  Ne2+ {[%clk 0:00:08]} 34. Kh2 {[%clk 0:00:13]}  Qxb3 {[%clk 0:00:08]} 35. Qf6+ {[%clk 0:00:11]}  Kg8 {[%clk 0:00:09]} 36. Bh6 {[%clk 0:00:11]}  Qd5 {[%clk 0:00:05]} 37. Qg7# {[%clk 0:00:10]} 1-0


[Site "https://www.chess.com"]

[Event "Titled Tuesday Blitz July 13 2021"]
[White "Gogolev, Artem"]
[Black "Bazarov, Konstantin"]
[WhiteFideId "4116615"]
[BlackFideId "4137000"]
[WhiteElo "2191"]
[BlackElo "2190"]
[Result "1-0"]
[Round "04"]
[TimeControl "180+1"]
[Date "2021.07.13"]
[WhiteClock "0:00:13"]
[BlackClock "0:00:02"]

1. d4 {[%clk 0:02:59]}  Nf6 {[%clk 0:02:58]} 2. c4 {[%clk 0:02:59]}  d6 {[%clk 0:02:59]} 3. Nf3 {[%clk 0:02:56]}  c6 {[%clk 0:02:59]} 4. Nc3 {[%clk 0:02:56]}  Nbd7 {[%clk 0:02:59]} 5. e4 {[%clk 0:02:54]}  e5 {[%clk 0:02:59]} 6. Be2 {[%clk 0:02:52]}  Be7 {[%clk 0:02:59]} 7. h3 {[%clk 0:02:50]}  O-O {[%clk 0:02:59]} 8. Be3 {[%clk 0:02:51]}  a6 {[%clk 0:02:58]} 9. O-O {[%clk 0:02:48]}  b5 {[%clk 0:02:57]} 10. b3 {[%clk 0:02:46]}  b4 {[%clk 0:02:56]} 11. Na4 {[%clk 0:02:43]}  Nxe4 {[%clk 0:02:55]} 12. dxe5 {[%clk 0:02:41]}  dxe5 {[%clk 0:02:50]} 13. Qc2 {[%clk 0:02:35]}  Nef6 {[%clk 0:02:41]} 14. Rfd1 {[%clk 0:02:32]}  Qc7 {[%clk 0:02:39]} 15. Bg5 {[%clk 0:02:21]}  c5 {[%clk 0:02:34]} 16. a3 {[%clk 0:02:16]}  bxa3 {[%clk 0:02:26]} 17. Rxa3 {[%clk 0:02:16]}  Bb7 {[%clk 0:02:26]} 18. Nh4 {[%clk 0:02:15]}  Be4 {[%clk 0:02:12]} 19. Qa2 {[%clk 0:02:11]}  h6 {[%clk 0:02:08]} 20. Be3 {[%clk 0:02:02]}  Rfd8 {[%clk 0:02:03]} 21. Nc3 {[%clk 0:02:00]}  Bb7 {[%clk 0:01:59]} 22. Nf5 {[%clk 0:01:58]}  Bf8 {[%clk 0:01:58]} 23. Nd5 {[%clk 0:01:53]}  Nxd5 {[%clk 0:01:52]} 24. cxd5 {[%clk 0:01:54]}  Nf6 {[%clk 0:01:50]} 25. d6 {[%clk 0:01:50]}  Bxd6 {[%clk 0:01:47]} 26. Ra4 {[%clk 0:01:21]}  Bf8 {[%clk 0:01:39]} 27. Rc1 {[%clk 0:01:19]}  Qd7 {[%clk 0:01:31]} 28. Ng3 {[%clk 0:01:09]}  Rdc8 {[%clk 0:01:21]} 29. Bxa6 {[%clk 0:01:08]}  Nd5 {[%clk 0:01:15]} 30. Bxb7 {[%clk 0:01:06]}  Qxb7 {[%clk 0:01:10]} 31. Nf5 {[%clk 0:00:54]}  Nb4 {[%clk 0:01:02]} 32. Qe2 {[%clk 0:00:48]}  Rxa4 {[%clk 0:00:57]} 33. bxa4 {[%clk 0:00:45]}  Qd7 {[%clk 0:00:56]} 34. Qg4 {[%clk 0:00:43]}  Kh7 {[%clk 0:00:52]} 35. Rd1 {[%clk 0:00:36]}  Qe6 {[%clk 0:00:47]} 36. Rd6 {[%clk 0:00:31]}  Qe8 {[%clk 0:00:38]} 37. Bxh6 {[%clk 0:00:28]}  gxh6 {[%clk 0:00:25]} 38. Nxh6 {[%clk 0:00:22]}  Bxh6 {[%clk 0:00:20]} 39. Qf5+ {[%clk 0:00:21]}  Kg7 {[%clk 0:00:17]} 40. Qg4+ {[%clk 0:00:21]}  Kf8 {[%clk 0:00:15]} 41. Rxh6 {[%clk 0:00:21]}  Nd5 {[%clk 0:00:14]} 42. Rh8+ {[%clk 0:00:20]}  Ke7 {[%clk 0:00:13]} 43. Qxc8 {[%clk 0:00:21]}  Qxc8 {[%clk 0:00:12]} 44. Rxc8 {[%clk 0:00:21]}  Kd6 {[%clk 0:00:12]} 45. a5 {[%clk 0:00:22]}  Nb4 {[%clk 0:00:12]} 46. h4 {[%clk 0:00:20]}  Kd5 {[%clk 0:00:02]} 47. h5 {[%clk 0:00:20]}  c4 {[%clk 0:00:02]} 48. h6 {[%clk 0:00:14]}  Nc6 {[%clk 0:00:03]} 49. Rxc6 {[%clk 0:00:13]}  c3 {[%clk 0:00:03]} 50. Rxc3 {[%clk 0:00:13]}  Kd4 {[%clk 0:00:02]} 51. Rh3 {[%clk 0:00:13]} 1-0


[Site "https://www.chess.com"]

[Event "Titled Tuesday Blitz July 13 2021"]
[White "Ibrahimli, Murad"]
[Black "Pourkashiyan, Atousa"]
[WhiteFideId "13410229"]
[BlackFideId "12502014"]
[WhiteElo "2109"]
[BlackElo "2285"]
[Result "1/2-1/2"]
[Round "04"]
[TimeControl "180+1"]
[Date "2021.07.13"]
[WhiteClock "0:00:07"]
[BlackClock "0:00:11"]

1. Nf3 {[%clk 0:03:00]}  d5 {[%clk 0:02:59]} 2. g3 {[%clk 0:02:59]}  Nf6 {[%clk 0:03:00]} 3. Bg2 {[%clk 0:03:00]}  e6 {[%clk 0:02:57]} 4. O-O {[%clk 0:03:00]}  Be7 {[%clk 0:02:57]} 5. c4 {[%clk 0:03:00]}  O-O {[%clk 0:02:57]} 6. d4 {[%clk 0:03:01]}  dxc4 {[%clk 0:02:57]} 7. Qc2 {[%clk 0:03:01]}  a6 {[%clk 0:02:53]} 8. a4 {[%clk 0:03:01]}  Bd7 {[%clk 0:02:52]} 9. Qxc4 {[%clk 0:03:02]}  Bc6 {[%clk 0:02:52]} 10. Bg5 {[%clk 0:03:02]}  Bd5 {[%clk 0:02:49]} 11. Qd3 {[%clk 0:02:58]}  Be4 {[%clk 0:02:48]} 12. Qd1 {[%clk 0:02:58]}  c5 {[%clk 0:02:29]} 13. Nbd2 {[%clk 0:02:41]}  Bc6 {[%clk 0:02:27]} 14. dxc5 {[%clk 0:02:30]}  Bxc5 {[%clk 0:02:24]} 15. Nc4 {[%clk 0:02:22]}  Qxd1 {[%clk 0:02:12]} 16. Rfxd1 {[%clk 0:02:23]}  Ne4 {[%clk 0:02:10]} 17. Be3 {[%clk 0:02:21]}  Bxe3 {[%clk 0:01:58]} 18. Nxe3 {[%clk 0:02:22]}  Nc5 {[%clk 0:01:55]} 19. a5 {[%clk 0:01:52]}  Nbd7 {[%clk 0:01:50]} 20. Nc4 {[%clk 0:01:52]}  Nb3 {[%clk 0:01:32]} 21. Ra3 {[%clk 0:01:28]}  Ndc5 {[%clk 0:01:32]} 22. Nfe5 {[%clk 0:01:14]}  Bxg2 {[%clk 0:01:15]} 23. Kxg2 {[%clk 0:01:15]}  Rad8 {[%clk 0:01:15]} 24. Nd7 {[%clk 0:01:15]}  Rfe8 {[%clk 0:01:13]} 25. Nxc5 {[%clk 0:01:14]}  Nxc5 {[%clk 0:01:12]} 26. Rxd8 {[%clk 0:01:13]}  Rxd8 {[%clk 0:01:12]} 27. b4 {[%clk 0:01:13]}  Ne4 {[%clk 0:01:10]} 28. f3 {[%clk 0:00:59]}  Nd2 {[%clk 0:01:06]} 29. Nb6 {[%clk 0:00:51]}  f6 {[%clk 0:00:57]} 30. Rc3 {[%clk 0:00:51]}  Nb1 {[%clk 0:00:48]} 31. Rc7 {[%clk 0:00:50]}  Rd2 {[%clk 0:00:48]} 32. Kf1 {[%clk 0:00:24]}  Rb2 {[%clk 0:00:48]} 33. Rxb7 {[%clk 0:00:23]}  Rxb4 {[%clk 0:00:48]} 34. Ra7 {[%clk 0:00:23]}  Nd2+ {[%clk 0:00:19]} 35. Kf2 {[%clk 0:00:22]}  Nb3 {[%clk 0:00:19]} 36. Rxa6 {[%clk 0:00:17]}  Nxa5 {[%clk 0:00:19]} 37. Nc8 {[%clk 0:00:17]}  Nc4 {[%clk 0:00:16]} 38. Rxe6 {[%clk 0:00:17]}  Ne5 {[%clk 0:00:15]} 39. Re8+ {[%clk 0:00:15]}  Kf7 {[%clk 0:00:15]} 40. Nd6+ {[%clk 0:00:15]}  Kg6 {[%clk 0:00:16]} 41. g4 {[%clk 0:00:12]}  h5 {[%clk 0:00:14]} 42. h3 {[%clk 0:00:12]}  hxg4 {[%clk 0:00:13]} 43. hxg4 {[%clk 0:00:13]}  Rb2 {[%clk 0:00:11]} 44. Nf5 {[%clk 0:00:10]}  Nd3+ {[%clk 0:00:11]} 45. Kg3 {[%clk 0:00:10]}  Nc1 {[%clk 0:00:11]} 46. Re7 {[%clk 0:00:06]}  Nxe2+ {[%clk 0:00:11]} 47. Kh4 {[%clk 0:00:07]}  Kh7 {[%clk 0:00:09]} 48. Rxg7+ {[%clk 0:00:07]}  Kh8 {[%clk 0:00:10]} 49. Rf7 {[%clk 0:00:07]}  Rb6 {[%clk 0:00:09]} 50. Kh5 {[%clk 0:00:06]}  Nf4+ {[%clk 0:00:08]} 51. Kh6 {[%clk 0:00:07]}  Kg8 {[%clk 0:00:09]} 52. Rg7+ {[%clk 0:00:07]}  Kf8 {[%clk 0:00:09]} 53. Rd7 {[%clk 0:00:07]}  Ke8 {[%clk 0:00:09]} 54. Rd6 {[%clk 0:00:07]}  Rxd6 {[%clk 0:00:08]} 55. Nxd6+ {[%clk 0:00:08]}  Ke7 {[%clk 0:00:08]} 56. Nf5+ {[%clk 0:00:09]}  Kf7 {[%clk 0:00:09]} 57. Nd6+ {[%clk 0:00:08]}  Ke6 {[%clk 0:00:09]} 58. Nf5 {[%clk 0:00:07]}  Kf7 {[%clk 0:00:10]} 59. Kh7 {[%clk 0:00:08]}  Ne2 {[%clk 0:00:10]} 60. Ne3 {[%clk 0:00:07]}  Nd4 {[%clk 0:00:09]} 61. f4 {[%clk 0:00:08]}  Ne2 {[%clk 0:00:09]} 62. f5 {[%clk 0:00:08]}  Nf4 {[%clk 0:00:09]} 63. Kh6 {[%clk 0:00:08]}  Nd3 {[%clk 0:00:08]} 64. Kh5 {[%clk 0:00:09]}  Ne5 {[%clk 0:00:09]} 65. Kh4 {[%clk 0:00:09]}  Nf3+ {[%clk 0:00:09]} 66. Kg3 {[%clk 0:00:10]}  Ne5 {[%clk 0:00:10]} 67. Kf4 {[%clk 0:00:10]}  Nd3+ {[%clk 0:00:11]} 68. Ke4 {[%clk 0:00:11]}  Nf2+ {[%clk 0:00:11]} 69. Kd5 {[%clk 0:00:11]}  Ke7 {[%clk 0:00:12]} 70. Kc6 {[%clk 0:00:11]}  Ne4 {[%clk 0:00:12]} 71. Nd5+ {[%clk 0:00:11]}  Kf7 {[%clk 0:00:13]} 72. Kd7 {[%clk 0:00:11]}  Nf2 {[%clk 0:00:13]} 73. Ne3 {[%clk 0:00:11]}  Ne4 {[%clk 0:00:13]} 74. Kc6 {[%clk 0:00:11]}  Nf2 {[%clk 0:00:14]} 75. Kd5 {[%clk 0:00:12]}  Nd3 {[%clk 0:00:14]} 76. Ke4 {[%clk 0:00:11]}  Nf2+ {[%clk 0:00:14]} 77. Kf3 {[%clk 0:00:12]}  Nd3 {[%clk 0:00:15]} 78. Nc4 {[%clk 0:00:12]}  Ne1+ {[%clk 0:00:14]} 79. Ke4 {[%clk 0:00:12]}  Ng2 {[%clk 0:00:14]} 80. Ne3 {[%clk 0:00:12]}  Ne1 {[%clk 0:00:14]} 81. Nd5 {[%clk 0:00:10]}  Ng2 {[%clk 0:00:14]} 82. Nf4 {[%clk 0:00:10]}  Ne1 {[%clk 0:00:14]} 83. Ke3 {[%clk 0:00:08]}  Nc2+ {[%clk 0:00:14]} 84. Kd3 {[%clk 0:00:09]}  Nb4+ {[%clk 0:00:13]} 85. Kc3 {[%clk 0:00:09]}  Nc6 {[%clk 0:00:13]} 86. Nd3 {[%clk 0:00:10]}  Kg7 {[%clk 0:00:12]} 87. Kc4 {[%clk 0:00:11]}  Kh6 {[%clk 0:00:12]} 88. Kd5 {[%clk 0:00:11]}  Nd8 {[%clk 0:00:11]} 89. Ke4 {[%clk 0:00:04]}  Kg5 {[%clk 0:00:11]} 90. Kf3 {[%clk 0:00:04]}  Nc6 {[%clk 0:00:12]} 91. Kg3 {[%clk 0:00:04]}  Nd4 {[%clk 0:00:11]} 92. Nf4 {[%clk 0:00:04]}  Nxf5+ {[%clk 0:00:11]} 93. gxf5 {[%clk 0:00:05]}  Kxf5 {[%clk 0:00:11]} 94. Kf3 {[%clk 0:00:06]}  Ke5 {[%clk 0:00:12]} 95. Nh5 {[%clk 0:00:07]}  f5 {[%clk 0:00:11]} 1/2-1/2


[Site "https://www.chess.com"]

[Event "Titled Tuesday Blitz July 13 2021"]
[White "Kapitanchuk, Tomas"]
[Black "Solon, Nathan"]
[WhiteFideId "135046"]
[BlackFideId "2017229"]
[WhiteElo "1955"]
[BlackElo "2644"]
[Result "0-1"]
[Round "04"]
[TimeControl "180+1"]
[Date "2021.07.13"]
[WhiteClock "0:00:23"]
[BlackClock "0:00:15"]

1. e4 {[%clk 0:03:00]}  c5 {[%clk 0:02:54]} 2. Nf3 {[%clk 0:03:01]}  d6 {[%clk 0:02:54]} 3. Bb5+ {[%clk 0:03:01]}  Nd7 {[%clk 0:02:53]} 4. O-O {[%clk 0:03:01]}  a6 {[%clk 0:02:53]} 5. Bd3 {[%clk 0:03:01]}  Ngf6 {[%clk 0:02:51]} 6. Re1 {[%clk 0:03:01]}  e6 {[%clk 0:02:50]} 7. c3 {[%clk 0:03:01]}  b5 {[%clk 0:02:50]} 8. Bc2 {[%clk 0:03:01]}  c4 {[%clk 0:02:49]} 9. a4 {[%clk 0:03:00]}  Bb7 {[%clk 0:02:48]} 10. axb5 {[%clk 0:02:56]}  axb5 {[%clk 0:02:49]} 11. Rxa8 {[%clk 0:02:57]}  Qxa8 {[%clk 0:02:48]} 12. Na3 {[%clk 0:02:58]}  Bxe4 {[%clk 0:02:08]} 13. Bxe4 {[%clk 0:02:52]}  Nxe4 {[%clk 0:02:09]} 14. Nxb5 {[%clk 0:02:52]}  Qb8 {[%clk 0:02:08]} 15. Rxe4 {[%clk 0:02:45]}  Qxb5 {[%clk 0:02:07]} 16. Nd4 {[%clk 0:02:46]}  Qd5 {[%clk 0:02:02]} 17. d3 {[%clk 0:02:33]}  Nc5 {[%clk 0:01:54]} 18. Rg4 {[%clk 0:02:21]}  f5 {[%clk 0:01:28]} 19. dxc4 {[%clk 0:02:15]}  Qxc4 {[%clk 0:01:28]} 20. Rg3 {[%clk 0:02:15]}  Kf7 {[%clk 0:01:25]} 21. b3 {[%clk 0:02:03]}  Qd5 {[%clk 0:01:21]} 22. c4 {[%clk 0:01:57]}  Qb7 {[%clk 0:01:21]} 23. Nb5 {[%clk 0:01:47]}  Ne4 {[%clk 0:01:19]} 24. Rd3 {[%clk 0:01:43]}  d5 {[%clk 0:01:18]} 25. Be3 {[%clk 0:01:41]}  Be7 {[%clk 0:01:13]} 26. Nd4 {[%clk 0:01:23]}  dxc4 {[%clk 0:01:10]} 27. bxc4 {[%clk 0:01:23]}  Rc8 {[%clk 0:01:08]} 28. f3 {[%clk 0:01:12]}  Nd6 {[%clk 0:01:01]} 29. c5 {[%clk 0:01:06]}  Rxc5 {[%clk 0:00:58]} 30. Nxe6 {[%clk 0:01:06]}  Rb5 {[%clk 0:00:50]} 31. Ng5+ {[%clk 0:00:50]}  Bxg5 {[%clk 0:00:42]} 32. Bxg5 {[%clk 0:00:50]}  Rb1 {[%clk 0:00:41]} 33. Bc1 {[%clk 0:00:49]}  Qc7 {[%clk 0:00:20]} 34. Rxd6 {[%clk 0:00:41]}  Qc5+ {[%clk 0:00:15]} 35. Qd4 {[%clk 0:00:23]}  Qxc1+ {[%clk 0:00:15]} 36. Kf2 {[%clk 0:00:23]}  Qe1# {[%clk 0:00:15]} 0-1


[Site "https://www.chess.com"]

[Event "Titled Tuesday Blitz July 13 2021"]
[White "Kretov, Evgenij"]
[Black "Navalgund, Niranjan"]
[WhiteFideId "4167821"]
[BlackFideId "5030854"]
[WhiteElo "2400"]
[BlackElo "2290"]
[Result "0-1"]
[Round "04"]
[TimeControl "180+1"]
[Date "2021.07.13"]
[WhiteClock "0:00:07"]
[BlackClock "0:00:09"]

1. d4 {[%clk 0:03:00]}  Nf6 {[%clk 0:02:58]} 2. c4 {[%clk 0:03:01]}  Nc6 {[%clk 0:02:43]} 3. Nf3 {[%clk 0:03:00]}  e6 {[%clk 0:02:37]} 4. Nc3 {[%clk 0:03:00]}  Bb4 {[%clk 0:02:33]} 5. Bg5 {[%clk 0:02:59]}  h6 {[%clk 0:02:28]} 6. Bh4 {[%clk 0:02:59]}  g5 {[%clk 0:02:28]} 7. Bg3 {[%clk 0:02:59]}  d6 {[%clk 0:02:25]} 8. d5 {[%clk 0:02:54]}  Bxc3+ {[%clk 0:02:24]} 9. bxc3 {[%clk 0:02:54]}  Ne7 {[%clk 0:02:22]} 10. e3 {[%clk 0:02:43]}  exd5 {[%clk 0:01:58]} 11. cxd5 {[%clk 0:02:42]}  Nexd5 {[%clk 0:01:52]} 12. Bc4 {[%clk 0:02:35]}  Nxc3 {[%clk 0:01:48]} 13. Qb3 {[%clk 0:02:34]}  Nce4 {[%clk 0:01:41]} 14. Bxf7+ {[%clk 0:02:32]}  Kf8 {[%clk 0:01:42]} 15. Bc4 {[%clk 0:02:24]}  Kg7 {[%clk 0:01:24]} 16. Qb2 {[%clk 0:02:19]}  c6 {[%clk 0:01:18]} 17. O-O {[%clk 0:02:18]}  Bg4 {[%clk 0:01:14]} 18. Nd4 {[%clk 0:02:16]}  Qb6 {[%clk 0:01:12]} 19. Qc2 {[%clk 0:02:06]}  Nxg3 {[%clk 0:01:11]} 20. hxg3 {[%clk 0:02:05]}  Qc5 {[%clk 0:01:09]} 21. Qd3 {[%clk 0:01:58]}  d5 {[%clk 0:01:03]} 22. Bb3 {[%clk 0:01:58]}  Rae8 {[%clk 0:00:55]} 23. f4 {[%clk 0:01:41]}  Ne4 {[%clk 0:00:50]} 24. fxg5 {[%clk 0:01:23]}  hxg5 {[%clk 0:00:45]} 25. Nf5+ {[%clk 0:01:16]}  Kg6 {[%clk 0:00:31]} 26. Rac1 {[%clk 0:01:10]}  Qb4 {[%clk 0:00:27]} 27. Bxd5 {[%clk 0:00:59]}  Bxf5 {[%clk 0:00:25]} 28. Rxf5 {[%clk 0:00:53]}  Kxf5 {[%clk 0:00:22]} 29. Rf1+ {[%clk 0:00:53]}  Kg6 {[%clk 0:00:21]} 30. Bf7+ {[%clk 0:00:51]}  Kg7 {[%clk 0:00:21]} 31. Bxe8 {[%clk 0:00:44]}  Rxe8 {[%clk 0:00:22]} 32. Rb1 {[%clk 0:00:37]}  Qe7 {[%clk 0:00:20]} 33. Qd4+ {[%clk 0:00:37]}  Nf6 {[%clk 0:00:20]} 34. Rb3 {[%clk 0:00:37]}  Rd8 {[%clk 0:00:20]} 35. Qxa7 {[%clk 0:00:36]}  Rd1+ {[%clk 0:00:19]} 36. Kf2 {[%clk 0:00:36]}  Ng4+ {[%clk 0:00:19]} 37. Ke2 {[%clk 0:00:36]}  Rd7 {[%clk 0:00:18]} 38. Qa5 {[%clk 0:00:35]}  Qf6 {[%clk 0:00:18]} 39. Qe1 {[%clk 0:00:28]}  c5 {[%clk 0:00:15]} 40. Rb5 {[%clk 0:00:15]}  c4 {[%clk 0:00:14]} 41. e4 {[%clk 0:00:09]}  c3 {[%clk 0:00:12]} 42. e5 {[%clk 0:00:08]}  Qa6 {[%clk 0:00:12]} 43. Qb1 {[%clk 0:00:07]}  c2 {[%clk 0:00:09]} 0-1


[Site "https://www.chess.com"]

[Event "Titled Tuesday Blitz July 13 2021"]
[White "Langner, Ladislav"]
[Black "Barp, Alberto"]
[WhiteFideId "300403"]
[BlackFideId "872555"]
[WhiteElo "2346"]
[BlackElo "2229"]
[Result "0-1"]
[Round "04"]
[TimeControl "180+1"]
[Date "2021.07.13"]
[WhiteClock "0:00:49"]
[BlackClock "0:00:18"]

1. e4 {[%clk 0:03:00]}  e5 {[%clk 0:02:56]} 2. Bc4 {[%clk 0:03:00]}  Nf6 {[%clk 0:02:56]} 3. d3 {[%clk 0:03:01]}  Nc6 {[%clk 0:02:52]} 4. Nf3 {[%clk 0:03:01]}  Bc5 {[%clk 0:02:50]} 5. c3 {[%clk 0:03:02]}  d6 {[%clk 0:02:49]} 6. a4 {[%clk 0:03:02]}  a5 {[%clk 0:02:49]} 7. Nbd2 {[%clk 0:03:02]}  h6 {[%clk 0:02:47]} 8. O-O {[%clk 0:03:02]}  O-O {[%clk 0:02:46]} 9. Re1 {[%clk 0:03:02]}  Be6 {[%clk 0:02:41]} 10. Bxe6 {[%clk 0:02:59]}  fxe6 {[%clk 0:02:42]} 11. Nb3 {[%clk 0:02:59]}  Bb6 {[%clk 0:02:42]} 12. d4 {[%clk 0:03:00]}  exd4 {[%clk 0:02:40]} 13. cxd4 {[%clk 0:02:59]}  e5 {[%clk 0:02:29]} 14. dxe5 {[%clk 0:02:47]}  Ng4 {[%clk 0:02:28]} 15. Nbd4 {[%clk 0:02:12]}  dxe5 {[%clk 0:01:10]} 16. Qb3+ {[%clk 0:02:07]}  Kh8 {[%clk 0:01:08]} 17. Ne6 {[%clk 0:02:07]}  Qf6 {[%clk 0:00:39]} 18. Be3 {[%clk 0:01:54]}  Nxe3 {[%clk 0:00:33]} 19. Nxf8 {[%clk 0:01:47]}  Ng4 {[%clk 0:00:28]} 20. Nd7 {[%clk 0:01:37]}  Bxf2+ {[%clk 0:00:26]} 21. Kf1 {[%clk 0:01:31]}  Qd6 {[%clk 0:00:21]} 22. Rad1 {[%clk 0:01:29]}  Nd4 {[%clk 0:00:19]} 23. Qxb7 {[%clk 0:01:15]}  Rd8 {[%clk 0:00:19]} 24. Ndxe5 {[%clk 0:00:54]}  Nxe5 {[%clk 0:00:19]} 25. Kxf2 {[%clk 0:00:53]}  Nexf3 {[%clk 0:00:19]} 26. gxf3 {[%clk 0:00:48]}  Qxh2+ {[%clk 0:00:19]} 27. Ke3 {[%clk 0:00:49]}  Nc2# {[%clk 0:00:18]} 0-1


[Site "https://www.chess.com"]

[Event "Titled Tuesday Blitz July 13 2021"]
[White "Lazavik, Denis"]
[Black "Golubev, Mikhail"]
[WhiteFideId "13515110"]
[BlackFideId "14100983"]
[WhiteElo "2436"]
[BlackElo "2374"]
[Result "0-1"]
[Round "04"]
[TimeControl "180+1"]
[Date "2021.07.13"]
[WhiteClock "0:00:09"]
[BlackClock "0:00:16"]

1. d4 {[%clk 0:03:00]}  Nf6 {[%clk 0:02:59]} 2. c4 {[%clk 0:02:59]}  g6 {[%clk 0:02:59]} 3. g3 {[%clk 0:02:58]}  Bg7 {[%clk 0:03:00]} 4. Bg2 {[%clk 0:02:58]}  O-O {[%clk 0:03:00]} 5. Nc3 {[%clk 0:02:58]}  d6 {[%clk 0:03:00]} 6. Nf3 {[%clk 0:02:58]}  Nbd7 {[%clk 0:03:01]} 7. O-O {[%clk 0:02:59]}  e5 {[%clk 0:03:01]} 8. e4 {[%clk 0:02:59]}  Re8 {[%clk 0:03:01]} 9. h3 {[%clk 0:02:59]}  b6 {[%clk 0:02:59]} 10. Be3 {[%clk 0:02:45]}  Bb7 {[%clk 0:02:58]} 11. Qc2 {[%clk 0:02:45]}  Nxe4 {[%clk 0:02:47]} 12. Nxe4 {[%clk 0:02:39]}  Bxe4 {[%clk 0:02:46]} 13. Qxe4 {[%clk 0:02:22]}  exd4 {[%clk 0:02:46]} 14. Qf4 {[%clk 0:02:17]}  dxe3 {[%clk 0:02:42]} 15. Ng5 {[%clk 0:02:16]}  Re7 {[%clk 0:02:15]} 16. Bxa8 {[%clk 0:02:10]}  e2 {[%clk 0:02:11]} 17. Rfe1 {[%clk 0:01:44]}  Qxa8 {[%clk 0:02:10]} 18. Rxe2 {[%clk 0:01:19]}  Rxe2 {[%clk 0:01:54]} 19. Qxf7+ {[%clk 0:01:18]}  Kh8 {[%clk 0:01:54]} 20. Qxd7 {[%clk 0:01:19]}  Qf8 {[%clk 0:01:52]} 21. Rf1 {[%clk 0:01:10]}  Re7 {[%clk 0:01:51]} 22. Qc6 {[%clk 0:01:05]}  Bxb2 {[%clk 0:01:48]} 23. Kg2 {[%clk 0:01:02]}  Qf5 {[%clk 0:01:31]} 24. Qa8+ {[%clk 0:00:55]}  Kg7 {[%clk 0:01:30]} 25. h4 {[%clk 0:00:51]}  Bf6 {[%clk 0:01:28]} 26. Nf3 {[%clk 0:00:43]}  Qe4 {[%clk 0:01:25]} 27. Qxa7 {[%clk 0:00:43]}  Qxc4 {[%clk 0:01:24]} 28. Qb8 {[%clk 0:00:38]}  Qxa2 {[%clk 0:01:20]} 29. Rc1 {[%clk 0:00:35]}  Qf7 {[%clk 0:01:16]} 30. Qc8 {[%clk 0:00:29]}  d5 {[%clk 0:01:14]} 31. Rc6 {[%clk 0:00:27]}  d4 {[%clk 0:01:03]} 32. Rc2 {[%clk 0:00:23]}  Rd7 {[%clk 0:00:59]} 33. Rd2 {[%clk 0:00:22]}  d3 {[%clk 0:00:55]} 34. Qa6 {[%clk 0:00:21]}  Qd5 {[%clk 0:00:52]} 35. Qa3 {[%clk 0:00:19]}  c5 {[%clk 0:00:49]} 36. g4 {[%clk 0:00:19]}  Qe4 {[%clk 0:00:37]} 37. Kg3 {[%clk 0:00:14]}  h5 {[%clk 0:00:29]} 38. gxh5 {[%clk 0:00:09]}  gxh5 {[%clk 0:00:27]} 39. Rd1 {[%clk 0:00:06]}  Qg4+ {[%clk 0:00:22]} 40. Kh2 {[%clk 0:00:07]}  Qxf3 {[%clk 0:00:22]} 41. Rg1+ {[%clk 0:00:08]}  Kh7 {[%clk 0:00:21]} 42. Qa2 {[%clk 0:00:08]}  Be5+ {[%clk 0:00:20]} 43. Rg3 {[%clk 0:00:08]}  Bxg3+ {[%clk 0:00:20]} 44. fxg3 {[%clk 0:00:09]}  d2 {[%clk 0:00:18]} 45. Qe6 {[%clk 0:00:09]}  d1=Q {[%clk 0:00:16]} 0-1


[Site "https://www.chess.com"]